[Event "Croatian Championship 2022"]
[Site "Split"]
[Date "2022.12.06"]
[Round "8.4"]
[White "Bosiocic, Marin"]
[Black "Stevic, Hrvoje"]
[Result "0-1"]
[ECO "D26"]
[WhiteElo "2536"]
[BlackElo "2543"]
[Annotator "TA"]
[PlyCount "92"]
[EventDate "2022.11.29"]
[EventType "tourn"]
[EventCountry "CRO"]
[SourceTitle "playchess.com"]
[Source "ChessBase"]
[SourceQuality "1"]
[TimeControl "40/5400+30:1800+30"]

{[%evp 15,92,18,23,12,16,16,12,18,27,21,18,25,28,12,16,3,18,0,22,-62,-7,0,-19,-47,-47,-61,-45,-91,-91,-102,-93,-86,-34,-110,-110,-123,-89,-115,-120,-138,-143,-141,-147,-154,-104,-110,-91,-91,-91,-127,-135,-243,-243,-346,-134,-143,-114,-114,-112,-213,-208,-1229,-657,-1201,-1030,-986,-889,-921,-885,-5113,-5104,-5088,-5073,-29962,-29958,-6528,-1272,-29978,-29979]} 1. d4 {[%emt 0:00:02]} d5 {[%emt 0:03:41]} 2. c4 {[%emt 0:00:07]} dxc4 {[%emt 0:00:06]} 3. Nf3 {[%emt 0:00:07]} Nf6 {[%emt 0:00:18]} 4. e3 {[%emt 0:00:06]} e6 {[%emt 0:00:16]} 5. Bxc4 {[%emt 0:00:07]} c5 {[%emt 0:00:04]} 6. O-O {[%emt 0:00:09]} Nc6 {[%emt 0:00:03]} 7. dxc5 {[%emt 0:00:52]} Qxd1 {[%emt 0:00:28]} 8. Rxd1 {[%emt 0:00:18]} Bxc5 {[%emt 0:00:05]} 9. a3 {[%emt 0:00:44] D26: Queen's Gambit Accepted: 4 e3 e6 5 Bxc5 c5 sidelines.} O-O {[%emt 0:00:33]} 10. b4 {[%emt 0:00:20]} Be7 {[%emt 0:00:07]} 11. Bb2 {[%emt 0:02:09] The position is equal.} Bd7 {[%emt 0:00:47]} 12. Nbd2 {[%emt 0:01:43]} Rfd8 {[%emt 0:00:25]} 13. Rac1 {[%emt 0:02:18]} Be8 {[%emt 0:04:27]} 14. Kf1 {[%emt 0:01:14]} Rac8 {[%emt 0:10:51] [#]} 15. Ke2 $146 {[%emt 0:01:06]} ({Predecessor:} 15. Be2 Nb8 16. Rxc8 Rxc8 17. Nc4 Nd5 18. Nd4 Ba4 19. Rc1 Be8 20. g3 b5 21. Na5 Rxc1+ 22. Bxc1 {0-1 (62) Le,Q (2709)-Dominguez Perez,L (2758) Chess24.com INT 2021}) 15... Nd5 {[%emt 0:03:47]} (15... a6 {seems wilder.} 16. Bb3 a5 17. b5 a4) 16. Ne4 {[%emt 0:03:32]} (16. Bb3 {simplifies} Nb6 17. Nc4 Rxd1 18. Kxd1 Nxc4 19. Bxc4 Nb8 20. Kd2) 16... Nb6 {[%emt 0:04:45]} (16... h6 $5) 17. Bd3 {[%emt 0:08:53]} (17. Bb3 $11) 17... Na4 {[%emt 0:06:34]} (17... a5 $15) 18. Ba1 $1 $11 {[%emt 0:00:55]} a5 {[%emt 0:01:07]} (18... f5 19. Neg5 Rxd3 20. Rxd3 $16 (20. Kxd3 e5 $14)) 19. Nc5 {[%emt 0:23:19]} Nxc5 {[%emt 0:06:38]} 20. bxc5 {[%emt 0:00:05]} Nb8 {[%emt 0:15:51]} 21. h4 {[%emt 0:10:42]} (21. Rd2 $15) 21... Ba4 $17 {[%emt 0:22:14]} 22. Rd2 {[%emt 0:00:13]} Nd7 {[%emt 0:00:28]} (22... Rxc5 23. Rxc5 Bxc5 24. Bxh7+ $1 {[%mdl 512]} Kxh7 25. Rxd8 $16) 23. Bd4 {[%emt 0:03:38]} b6 {[%emt 0:02:40]} (23... g6 $17 {[%cal Rd7c5]} 24. Rc4 Bc6) 24. Ng5 {[%emt 0:05:52]} ({White should play} 24. Rc4 $1 $15 Bb5 25. Rc3 Bxd3+ 26. Rcxd3 Nxc5 27. Bxc5 bxc5 28. Rxd8+ Bxd8 29. Rd7) 24... h6 {[%emt 0:02:28]} 25. Ne4 {[%emt 0:00:28]} Nxc5 {[%emt 0:01:24]} (25... Bxc5 26. Ba6 $15) 26. Nxc5 {[%emt 0:00:09]} bxc5 {[%emt 0:01:49]} 27. Bc3 {[%emt 0:09:05]} c4 $36 {[%emt 0:00:40][%mdl 2048] Black has strong initiative.} ({Stronger than} 27... Bxh4 28. Bxa5 Rd5 29. Rc4 $17) 28. Be4 {[%emt 0:01:07]} Rxd2+ {[%emt 0:00:46]} (28... Bxa3 29. Ra1 $16) 29. Kxd2 {[%emt 0:00:59]} Bb3 {[%emt 0:01:20]} ({Resist} 29... Bxa3 30. Ra1 Rd8+ 31. Ke2 $16) (29... Bxh4 $142 30. Ke2 Bd8) 30. Bxa5 {[%emt 0:01:58]} Bxa3 {[%emt 0:00:05][%cal Of7f5] And now ...f5! would win.} 31. Rb1 {[%emt 0:06:56]} Be7 {[%emt 0:00:08]} 32. g3 {[%emt 0:01:49] [#]} Bf6 $1 {[%emt 0:01:32]} 33. Bb6 {[%emt 0:02:57] [#]} (33. Ke1 $17 {is a better defense.}) 33... Bb2 $1 $19 {[%emt 0:03:07][%mdl 512] ...c3+ is the strong threat.} 34. Bc2 {[%emt 0:03:11] [#]} (34. Ke1 $142 c3 35. Bd4) (34. Bd4 c3+) 34... Ba2 $1 {[%emt 0:00:59]} 35. Rd1 $17 {[%emt 0:02:02]} ({Avoid the trap} 35. Bh7+ $2 Kxh7 36. Re1 Bb3 $19) 35... e5 {[%emt 0:02:59]} 36. Ke2 {[%emt 0:07:52]} Bb3 {[%emt 0:03:37]} 37. Bxb3 {[%emt 0:00:42]} (37. Rb1 $17 Bxc2 38. Rxb2) 37... cxb3 $19 {[%emt 0:00:04]} 38. Rd8+ $2 {[%emt 0:01:10]} (38. Rb1 Rc2+ 39. Kf3) 38... Rxd8 {[%emt 0:00:04]} 39. Bxd8 {[%emt 0:00:03][%mdl 4096] Endgame KB-KB} Bc3 {[%emt 0:00:38]} 40. Kd3 {[%emt 0:00:00]} Be1 {[%emt 0:00:00]} 41. e4 {[%emt 0:00:57]} Bxf2 {[%emt 0:02:01]} 42. g4 {[%emt 0:00:14]} h5 {[%emt 0:06:58]} 43. gxh5 {[%emt 0:00:10]} Bd4 {[%emt 0:04:11]} 44. h6 {[%emt 0:10:28]} g6 {[%emt 0:04:37]} 45. Kd2 {[%emt 0:06:39]} Kh7 {[%emt 0:00:20][%cal Of7f5] ( -> ...f5!)} 46. Bg5 {[%emt 0:01:03]} f5 {[%emt 0:00:06] Weighted Error Value: White=0.72/Black=0.14 (very precise)} 0-1

[Event "Croatian Championship 2022"]
[Site "Split"]
[Date "2022.12.06"]
[Round "8.5"]
[White "Kozul, Zdenko"]
[Black "Jovanovic, Zoran"]
[Result "1/2-1/2"]
[ECO "A42"]
[WhiteElo "2539"]
[BlackElo "2513"]
[Annotator "TA"]
[PlyCount "86"]
[EventDate "2022.11.29"]
[EventType "tourn"]
[EventCountry "CRO"]
[SourceTitle "playchess.com"]
[Source "ChessBase"]
[SourceQuality "1"]
[TimeControl "40/5400+30:1800+30"]

{[%evp 17,86,56,50,51,51,47,52,47,65,56,60,37,58,35,40,39,45,46,34,22,33,36,36,30,43,40,33,42,38,40,54,29,47,31,52,31,52,31,62,39,64,53,69,69,69,69,69,59,63,54,58,69,91,91,91,91,91,91,91,91,91,91,87,0,0,0,0,0,0,0,0]} 1. d4 {[%emt 0:00:05]} d6 {[%emt 0:00:06]} 2. Nf3 {[%emt 0:00:17]} g6 {[%emt 0:00:09]} 3. c4 {[%emt 0:00:09]} Bg7 {[%emt 0:00:04]} 4. Nc3 {[%emt 0:00:16]} Nf6 {[%emt 0:00:07]} 5. e4 {[%emt 0:00:08]} Bg4 {[%emt 0:00:08]} 6. Be3 {[%emt 0:10:29]} Nc6 {[%emt 0:10:35]} 7. Be2 {[%emt 0:00:41]} Bxf3 {[%emt 0:00:17]} 8. Bxf3 {[%emt 0:00:07]} e5 {[%emt 0:00:02]} 9. d5 {[%emt 0:00:24]} Nd4 $1 {[%emt 0:00:02]} 10. Bxd4 {[%emt 0:01:38] A42: Modern Defence: Averbakh Variation.} exd4 {[%emt 0:00:24]} 11. Qxd4 {[%emt 0:00:11]} O-O {[%emt 0:00:09][%cal Of6e4]} 12. Qd2 {[%emt 0:02:03] White is slightly better.} Re8 {[%emt 0:03:36]} 13. O-O {[%emt 0:00:10]} Nd7 {[%emt 0:00:42]} 14. Rae1 {[%emt 0:05:13]} Qf6 {[%emt 0:17:34] [#]} 15. Bd1 $146 {[%emt 0:17:14]} ({Predecessor:} 15. Nb5 Rec8 16. Bg4 Rd8 17. Bxd7 Rxd7 18. Re2 a6 19. Nc3 b5 20. cxb5 axb5 21. a3 {1-0 (55) Sebastian,M (1865)-Radikovic,A (2112) Cala Gonone 2022}) 15... Re7 {[%emt 0:05:15]} 16. Bc2 {[%emt 0:09:41]} Qd4 {[%emt 0:02:05]} 17. Qxd4 {[%emt 0:04:46]} Bxd4 {[%emt 0:00:10]} 18. Nb5 {[%emt 0:00:21]} Bb6 {[%emt 0:06:12]} 19. Rd1 {[%emt 0:05:33]} Nc5 {[%emt 0:17:22]} 20. Nc3 {[%emt 0:01:17]} Ba5 {[%emt 0:00:41]} 21. Rfe1 {[%emt 0:00:50]} Rae8 {[%emt 0:01:23]} 22. Re3 {[%emt 0:01:02]} Bxc3 {[%emt 0:03:00]} 23. bxc3 {[%emt 0:00:06]} f6 {[%emt 0:07:32][%cal Og6g5]} 24. Rde1 {[%emt 0:06:20]} Kg7 {[%emt 0:01:51]} 25. f4 {[%emt 0:04:16]} a6 {[%emt 0:01:34]} 26. Kf2 {[%emt 0:03:30]} Kf7 {[%emt 0:06:51]} 27. Kf3 {[%emt 0:00:52]} Kg7 {[%emt 0:01:30]} 28. g3 {[%emt 0:04:07]} Kf7 {[%emt 0:01:01]} 29. R3e2 {[%emt 0:00:29]} Kg7 {[%emt 0:00:34]} 30. Ke3 {[%emt 0:08:21]} f5 {[%emt 0:05:52]} 31. Kd4 {[%emt 0:00:25]} (31. h4 {with more complications.} Kf6 32. Kd4 fxe4 33. Bxe4 h5 34. Re3) 31... fxe4 {[%emt 0:00:05]} 32. Bxe4 {[%emt 0:00:53]} h5 {[%emt 0:00:31]} 33. Bf3 {[%emt 0:01:54]} (33. Bd3 {simplifies} Rxe2 34. Rxe2 Rc8 35. Ke3) 33... Rxe2 {[%emt 0:00:04]} 34. Rxe2 {[%emt 0:00:05]} Rxe2 {[%emt 0:00:02]} 35. Bxe2 $14 {[%emt 0:00:09][%mdl 4096] Endgame KB-KN} Kf6 {[%emt 0:00:11]} 36. Bd1 {[%emt 0:00:38]} Kg7 {[%emt 0:05:28]} 37. h4 {[%emt 0:06:04]} Kf6 {[%emt 0:00:06]} 38. Bc2 {[%emt 0:00:15]} Nd7 {[%emt 0:03:07]} 39. Ba4 {[%emt 0:00:59]} Nc5 {[%emt 0:00:31] [#]} 40. Be8 {[%emt 0:00:00]} ({Better is} 40. Bd1 $1 $16) 40... Kf5 {[%emt 0:00:00] The position is equal.} 41. Ke3 {[%emt 0:01:15]} Kf6 {[%emt 0:00:39]} 42. Kd4 {[%emt 0:05:09]} Kf5 {[%emt 0:00:09]} 43. Ke3 {[%emt 0:00:05]} Kf6 {[%emt 0:34:19] Weighted Error Value: White=0.09 (flawless) /Black=0.06 (flawless)} 1/2-1/2

[Event "Croatian Championship 2022"]
[Site "Split"]
[Date "2022.12.06"]
[Round "8.6"]
[White "Doric, Darko"]
[Black "Saric, Ante"]
[Result "1/2-1/2"]
[ECO "E57"]
[WhiteElo "2446"]
[BlackElo "2504"]
[Annotator "TA"]
[PlyCount "39"]
[EventDate "2022.11.29"]
[EventType "tourn"]
[EventCountry "CRO"]
[SourceTitle "playchess.com"]
[Source "ChessBase"]
[SourceQuality "1"]
[TimeControl "40/5400+30:1800+30"]

{[%evp 20,27,6,0,16,25,13,29,30,28]} 1. d4 {[%emt 0:05:09]} d5 {[%emt 0:00:09]} 2. c4 {[%emt 0:01:22]} e6 {[%emt 0:00:06]} 3. Nc3 {[%emt 0:00:30]} Nf6 {[%emt 0:00:06]} 4. Bg5 {[%emt 0:00:47]} dxc4 {[%emt 0:00:42]} 5. e3 {[%emt 0:03:25]} c5 {[%emt 0:00:33]} 6. Bxc4 {[%emt 0:06:04]} cxd4 {[%emt 0:00:11]} 7. exd4 {[%emt 0:00:25]} Be7 {[%emt 0:00:43]} 8. Nf3 {[%emt 0:00:33]} h6 {[%emt 0:00:13]} 9. Bh4 {[%emt 0:03:38]} O-O {[%emt 0:00:08]} 10. O-O {[%emt 0:00:09]} Nc6 {[%emt 0:00:03]} 11. a3 {[%emt 0:07:43]} b6 {[%emt 0:08:57] 11...b6 was played by the boomers. E57: Nimzo-Indian: Rubinstein: Main Line: 7...Nc6 8 a3 dxc4 9 Bxc4 cxd4.} 12. Qd3 {[%emt 0:02:01]} Bb7 {[%emt 0:14:06]} 13. Rad1 {[%emt 0:00:50]} Nh5 {[%emt 0:11:48]} 14. Bg3 {[%emt 0:07:30] [#] An uneventful encounter.   Weighted Error Value: White=0.00 (flawless) /Black=0.05 (flawless)} {Predecessor:} Nxg3 $146 15. hxg3 Bf6 16. d5 exd5 17. Bxd5 Na5 18. Qe4 Qc8 19. Ne5 Bxe5 20. Qxe5 {½-½ (45) Timofeev,A (2539)-Aleksandrov,A (2606) St Petersburg 2015} 1/2-1/2

[Event "Croatian Championship 2022"]
[Site "Split"]
[Date "2022.12.07"]
[Round "9.1"]
[White "Saric, Ante"]
[Black "Martinovic, Sasa"]
[Result "1/2-1/2"]
[ECO "D77"]
[WhiteElo "2504"]
[BlackElo "2557"]
[Annotator "TA"]
[PlyCount "39"]
[EventDate "2022.11.29"]
[EventType "tourn"]
[EventCountry "CRO"]
[SourceTitle "playchess.com"]
[Source "ChessBase"]
[SourceQuality "1"]
[TimeControl "40/5400+30:1800+30"]

{[%evp 22,26,14,0,9,17,20]} 1. Nf3 {[%emt 0:00:04]} d5 {[%emt 0:00:04]} 2. g3 {[%emt 0:00:04]} g6 {[%emt 0:00:04]} 3. Bg2 {[%emt 0:00:12]} Bg7 {[%emt 0:00:03]} 4. d4 {[%emt 0:00:05]} Nf6 {[%emt 0:00:03]} 5. c4 {[%emt 0:00:24]} dxc4 {[%emt 0:00:04]} 6. Na3 {[%emt 0:00:11][%cal Bb1a3,Ba3c4,Bc4e5][%mdl 32]} c3 {[%emt 0:00:17]} 7. bxc3 {[%emt 0:00:05]} O-O {[%emt 0:00:16]} 8. O-O {[%emt 0:00:21]} c5 {[%emt 0:00:02]} 9. Nc4 {[%emt 0:01:36]} Nc6 {[%emt 0:00:06]} 10. Nfe5 {[%emt 0:00:06]} Be6 {[%emt 0:00:44] is the new trend.} 11. Nxc6 {[%emt 0:09:20]} bxc6 {[%emt 0:00:04]} 12. Ne5 {[%emt 0:00:51]} Nd5 {[%emt 0:00:16] D77: Fianchetto Grünfeld: 6 0-0: Replies other than 6...c6.} 13. Bd2 {[%emt 0:09:52]} Rc8 {[%emt 0:00:39] [#] A balanced but interesting game.} {Predecessor:} 14. c4 $146 Bxe5 15. dxe5 Nb6 16. Be3 Qc7 17. Bxc5 Rfd8 18. Qc1 Na4 19. Qa3 Nxc5 20. Qxc5 {½-½ (38) Saric,I (2654)-Brkic,A (2588) Porec 2016} 1/2-1/2

[Event "Croatian Championship 2022"]
[Site "Split"]
[Date "2022.12.07"]
[Round "9.2"]
[White "Jovanovic, Zoran"]
[Black "Doric, Darko"]
[Result "1-0"]
[ECO "B30"]
[WhiteElo "2513"]
[BlackElo "2446"]
[Annotator "TA"]
[PlyCount "71"]
[EventDate "2022.11.29"]
[EventType "tourn"]
[EventCountry "CRO"]
[SourceTitle "playchess.com"]
[Source "ChessBase"]
[SourceQuality "1"]
[TimeControl "40/5400+30:1800+30"]

{[%evp 10,71,13,0,5,-4,21,25,34,12,23,16,32,31,17,19,15,21,45,41,44,46,46,49,37,43,50,50,115,108,114,113,111,107,112,83,130,133,127,134,133,102,100,91,104,87,125,123,123,127,124,122,128,108,179,112,183,183,175,180,178,172,272,272]} 1. e4 {[%emt 0:00:02]} c5 {[%emt 0:00:06]} 2. Nf3 {[%emt 0:00:10]} e6 {[%emt 0:00:05]} 3. Nc3 {[%emt 0:01:08]} Nc6 {[%emt 0:00:14]} 4. Bb5 {[%emt 0:00:06]} Nd4 {[%emt 0:00:26]} 5. Bd3 {[%emt 0:03:11]} a6 {[%emt 0:04:18]} 6. O-O {[%emt 0:08:29]} Nc6 {[%emt 0:00:36] 6...Nc6 scores better than 6...Ne7. B30: Sicilian: 2...Nc6 3 Bb5, lines without ...g6.} 7. Nd5 {[%emt 0:04:26]} d6 {[%emt 0:04:58]} 8. Ne3 {[%emt 0:01:14]} Nf6 {[%emt 0:01:41] White has an edge.} 9. c3 {[%emt 0:00:05] Inhibits Nb4.} d5 {[%emt 0:02:54]} 10. exd5 {[%emt 0:01:26]} Nxd5 {[%emt 0:00:07]} 11. Be4 {[%emt 0:01:24]} Be7 {[%emt 0:21:05]} 12. d4 {[%emt 0:01:12]} cxd4 {[%emt 0:07:33]} 13. Nxd4 {[%emt 0:09:54]} Nxd4 {[%emt 0:07:57] [#]} 14. Qxd4 $146 {[%emt 0:06:08]} ({Predecessor:} 14. Bxd5 Nb5 15. Bf3 Qc7 16. c4 Nd6 17. b3 O-O 18. Bb2 Bd7 19. Rc1 Rad8 20. Qc2 {1-0 (29) Rodi,L (2327)-Almeida Junior,A (2044) Niteroi 2022}) 14... Nf6 {[%emt 0:13:30] Hoping for ...Qxd4.} 15. Qxd8+ {[%emt 0:00:46]} Bxd8 {[%emt 0:00:06]} 16. Bf3 {[%emt 0:00:04]} Rb8 {[%emt 0:05:35]} 17. Nc4 {[%emt 0:12:35] Strongly threatening Nd6+.} Bc7 {[%emt 0:27:49] Inhibits Nd6+.} 18. Rd1 {[%emt 0:03:05]} Ke7 {[%emt 0:00:00]} ({Black should play} 18... b5 $14 19. Nd6+ Ke7 20. Nxc8+ (20. Bf4 Nd5 $14) 20... Rhxc8) 19. b3 $1 $16 {[%emt 0:03:38] Ba3+ is the strong threat.} Ne8 {[%emt 0:00:00]} 20. a4 $36 {[%emt 0:01:05][%mdl 2048] Keeping Black busy.} b6 {[%emt 0:00:00]} 21. Bc6 {[%emt 0:10:32]} Kf6 {[%emt 0:00:00]} 22. Be3 {[%emt 0:03:07]} Bb7 {[%emt 0:00:00]} (22... e5 $142) 23. Bxe8 {[%emt 0:05:05] White is much more active.} Rhxe8 {[%emt 0:00:00]} 24. Bxb6 {[%emt 0:00:07]} Rec8 {[%emt 0:00:00]} 25. Ba7 {[%emt 0:03:01] Threatens to win with Rd7.} Ra8 {[%emt 0:00:00]} 26. Bd4+ {[%emt 0:00:48][%cal Ba7d4,Bd4e5,Be5d6][%mdl 32]} Kg6 {[%emt 0:00:00]} 27. a5 {[%emt 0:00:31]} Rab8 {[%emt 0:01:42]} 28. Ne5+ {[%emt 0:05:18]} Bxe5 {[%emt 0:00:11]} 29. Bxe5 {[%emt 0:00:02]} Ra8 {[%emt 0:00:03]} 30. c4 {[%emt 0:00:36]} f6 {[%emt 0:00:29]} 31. Bd6 {[%emt 0:01:12]} e5 {[%emt 0:00:10]} (31... Be4 $16) 32. f3 {[%emt 0:00:42]} (32. Ra4 $1 $18) 32... h5 {[%emt 0:00:25] [#]} (32... Bc6 $16 {keeps fighting.} 33. Kf2 Ra7) 33. Ra4 $1 $18 {[%emt 0:02:00]} Bc6 {[%emt 0:04:18] [#]} 34. Rb4 {[%emt 0:00:07]} Ra7 {[%emt 0:00:30]} 35. Rb6 {[%emt 0:00:12][%cal Od6e5]} Be8 {[%emt 0:00:28]} (35... e4 $142 36. Kf2 exf3) 36. Bxe5 {[%emt 0:00:10] Weighted Error Value: White=0.05 (flawless) /Black=0.16 (very precise)} 1-0

[Event "Croatian Championship 2022"]
[Site "Split"]
[Date "2022.12.07"]
[Round "9.3"]
[White "Stevic, Hrvoje"]
[Black "Kozul, Zdenko"]
[Result "1-0"]
[ECO "B22"]
[WhiteElo "2543"]
[BlackElo "2539"]
[Annotator "TA"]
[PlyCount "101"]
[EventDate "2022.11.29"]
[EventType "tourn"]
[EventCountry "CRO"]
[SourceTitle "playchess.com"]
[Source "ChessBase"]
[SourceQuality "1"]
[TimeControl "40/5400+30:1800+30"]

{[%evp 13,101,25,23,29,44,30,60,66,54,44,43,47,47,45,57,47,52,56,60,50,50,60,95,83,86,85,102,68,68,68,68,68,72,0,0,0,0,0,84,98,233,0,0,0,0,0,0,0,0,0,0,0,0,0,0,0,0,0,7,0,0,0,162,159,389,381,389,385,400,401,367,341,322,314,500,481,428,413,1030,1012,1030,1019,997,983,893,715,662,614,6079,6079]} 1. e4 {[%emt 0:06:00]} c5 {[%emt 0:00:10]} 2. c3 {[%emt 0:00:12]} Nf6 {[%emt 0:00:18]} 3. e5 {[%emt 0:00:06]} Nd5 {[%emt 0:00:07]} 4. Nf3 {[%emt 0:00:13]} Nc6 {[%emt 0:01:52]} 5. Bc4 {[%emt 0:00:24]} Nb6 {[%emt 0:04:22]} 6. Bb3 {[%emt 0:00:12]} c4 {[%emt 0:00:09]} 7. Bc2 {[%emt 0:00:04]} g6 {[%emt 0:00:11] 7...d6 is a critical line.} 8. Na3 {[%emt 0:04:55] B22: Sicilian: 2 c3.} Bg7 {[%emt 0:15:55]} 9. Qe2 {[%emt 0:00:12]} O-O {[%emt 0:00:20]} 10. O-O {[%emt 0:01:56] White is slightly better.} Re8 {[%emt 0:03:22]} 11. Re1 {[%emt 0:08:55]} d5 {[%emt 0:02:01]} 12. exd6 {[%emt 0:00:28] [#]} Bg4 $146 {[%emt 0:01:31]} ({Predecessor:} 12... Be6 13. dxe7 Qxe7 14. d4 cxd3 15. Qxd3 Rad8 16. Qf1 h6 17. Bb3 Nd5 18. Nc2 a6 {½-½ (51) Fengier,D (2139)-Reichgeld,M (2191) ICCF email 2014}) 13. Nxc4 {[%emt 0:07:36]} Bxf3 {[%emt 0:04:47]} 14. gxf3 {[%emt 0:00:14]} Nxc4 {[%emt 0:09:44]} 15. Qxc4 {[%emt 0:00:11]} Ne5 {[%emt 0:00:20]} 16. Qf4 {[%emt 0:34:00]} exd6 {[%emt 0:02:15]} 17. Kg2 {[%emt 0:04:44]} Qd7 {[%emt 0:20:34]} 18. d4 {[%emt 0:02:10]} Nc4 {[%emt 0:00:08]} 19. Rxe8+ {[%emt 0:05:51]} Rxe8 {[%emt 0:00:08]} 20. Bb3 {[%emt 0:01:39]} d5 {[%emt 0:03:42]} 21. Bxc4 {[%emt 0:01:30]} dxc4 {[%emt 0:00:06]} 22. Bd2 {[%emt 0:00:08] Against Re1} Qb5 {[%emt 0:02:08]} 23. Re1 {[%emt 0:12:56]} (23. b4 $16) 23... Rxe1 $11 {[%emt 0:00:27]} 24. Bxe1 {[%emt 0:00:02]} Qxb2 {[%emt 0:00:13][%mdl 4096] Endgame KQB-KQB} 25. Bd2 {[%emt 0:01:57]} Bf8 {[%emt 0:10:26] [#]} (25... Bf6 $11) 26. d5 $1 $16 {[%emt 0:00:29] Black must now prevent d6.} Qxa2 {[%emt 0:00:42]} (26... Qb5 $16) 27. Be3 $2 {[%emt 0:00:57]} (27. d6 $18 Qa4 28. Qf6) 27... Qa6 $11 {[%emt 0:06:00]} 28. Qb8 {[%emt 0:00:17][%cal Oe3c5] Intending Bc5! and mate.} Qd6 {[%emt 0:00:25] Against Bc5} 29. Qxb7 {[%emt 0:00:16]} a5 $1 {[%emt 0:00:08]} 30. Qa8 {[%emt 0:00:09]} a4 {[%emt 0:00:31]} 31. Bh6 {[%emt 0:03:45] Threatens to win with Bxf8.} a3 {[%emt 0:00:14]} 32. Kf1 {[%emt 0:00:33]} f6 {[%emt 0:02:30]} 33. Bxf8 {[%emt 0:01:48]} Qxf8 {[%emt 0:00:05] KQ-KQ} 34. Qa6 {[%emt 0:00:04][%cal Od5d6] aiming for d6!} Qc5 {[%emt 0:05:44]} 35. d6 {[%emt 0:01:00]} Kg7 {[%emt 0:00:25]} 36. d7 {[%emt 0:00:51]} Qd5 {[%emt 0:00:23] Against d8Q} 37. Qa7 {[%emt 0:00:39]} Qf7 $2 {[%emt 0:03:47] [#]} (37... Qxf3 38. d8=Q+ Kh6 39. Qf8+ Kg5 40. Qac5+ (40. Qaxa3 Qd1+ 41. Kg2 Qg4+ 42. Kh1 Qf3+ 43. Kg1 Qg4+ 44. Kh1 Qf3+ 45. Kg1 Qg4+ 46. Kf1 Qd1+ 47. Kg2 Qg4+ 48. Kh1 $11) 40... Kg4 41. Qxc4+ Kh5 42. Qe2 Qxe2+ 43. Kxe2) (37... Kh6 $11 {and Black stays safe.}) 38. Kg2 $1 $18 {[%emt 0:00:30][%cal Oa7c7] Qc7! is the strong threat.} g5 $2 {[%emt 0:01:53]} (38... Qe7 $2 39. Qc7 (39. d8=Q $2 {is the wrong capture.} Qxa7 40. Qd1 a2 $19) 39... Kg8 40. d8=Q+ $18) (38... a2 $16) 39. Qc7 $1 {[%emt 0:00:32]} (39. d8=Q $2 {too greedy.} Qxa7 40. Qd1 a2 $19) 39... a2 {[%emt 0:00:38]} 40. d8=Q {[%emt 0:00:00]} (40. d8=B $2 {perishes.} Qxc7 41. Bxc7 a1=Q $19) 40... a1=Q {[%emt 0:00:00]} 41. Qxf7+ {[%emt 0:08:18]} Kxf7 {[%emt 0:00:14] KQ-KQ} 42. Qd5+ {[%emt 0:00:03]} Kg7 {[%emt 0:03:40]} 43. Qxc4 {[%emt 0:01:06]} Qa7 {[%emt 0:00:12]} (43... Qa5 {keeps fighting.} 44. Qc8 Qe5) 44. Qd5 {[%emt 0:02:04]} Qc7 {[%emt 0:07:19]} 45. c4 {[%emt 0:00:14]} h5 {[%emt 0:00:57]} (45... f5 $142 46. Qxf5 Qxc4 47. Qxg5+ Kh8) 46. c5 {[%emt 0:06:11] Strongly threatening c6. White is clearly winning.} Kf8 {[%emt 0:05:41]} 47. Qe6 {[%emt 0:05:22]} Qxc5 {[%emt 0:04:23]} 48. Qxf6+ {[%emt 0:00:07]} Ke8 {[%emt 0:00:05]} 49. Qg6+ {[%emt 0:00:07]} Kd8 {[%emt 0:00:33]} 50. Qxh5 {[%emt 0:00:50] And now h4 would win.} Qc1 {[%emt 0:00:06]} 51. Qh8+ {[%emt 0:00:43] Weighted Error Value: White=0.10 (very precise) /Black=0.29 (precise)} 1-0